bitfinex/quotes_SOLUSD_20251018
["timestamp","ask_amount","ask_price","bid_price","bid_amount"]
[1760787560311,0.1,185.71,185.67,11.88079835]
[1760787560530,0.1,185.71,185.67,31.98079833]
[1760787560691,1e-08,185.68,185.67,14.04021746]
[1760787560894,1e-08,185.69,185.68,0.28432314]
[1760787561126,1e-08,185.69,185.68,12.41935931]
[1760787561914,1e-08,185.69,185.68,39.79935931]
[1760787563021,1e-08,185.69,185.68,45.18496896]
[1760787563419,1e-08,185.71,185.7,34.04079835]
[1760787563609,1e-08,185.71,185.7,34.57930131]
[1760787563811,1e-08,185.71,185.7,35.29930131]
[1760787564215,1e-08,185.71,185.7,37.45825421]
[1760787564599,1e-08,185.71,185.7,42.84328382]
[1760787569528,0.1,185.72,185.71,36.54553796]
[1760787569708,0.1,185.72,185.71,37.26553796]
[1760787569907,0.79,185.72,185.71,36.26121482]
[1760787570112,0.1,185.72,185.71,36.79968878]
[1760787570430,0.79,185.72,185.71,8.08239958]
[1760787571633,0.1,185.72,185.71,8.36672272]
[1760787572930,0.79,185.72,185.71,2.15918598]
[1760787573116,0.79,185.72,185.7,5.38498019]
[1760787573323,0.69,185.71,185.7,5.38498019]
[1760787573526,0.69,185.71,185.7,7.54451588]
[1760787575636,0.1,185.72,185.7,7.54451588]
[1760787575820,0.79,185.72,185.7,7.54451588]
[1760787576139,0.1,185.72,185.71,0.53847396]
[1760787576314,0.1,185.72,185.71,13.858808]
[1760787576515,0.1,185.72,185.71,19.96354764]
[1760787579838,0.1,185.72,185.71,39.96354761]
[1760787582844,0.1,185.72,185.71,39.24354761]
[1760787583627,1e-08,185.76,185.74,34.04079835]
[1760787583843,1e-08,185.76,185.75,39.07915635]
[1760787584041,1e-08,185.76,185.75,39.78915635]
[1760787584341,1e-08,185.76,185.75,41.94729387]
[1760787584932,1e-08,185.76,185.75,47.33087395]
[1760787589551,22.88,185.91,185.78,11.16079835]
[1760787589734,0.65,185.99,185.95,10.87647521]
[1760787590048,0.65,186.06,186.02,0.28432314]
[1760787590225,0.65,186.05,186.04,11.16079835]
[1760787590633,0.65,186.08,186.04,11.16079835]
[1760787590835,6.30437869,186.2,186.04,11.16079835]
[1760787590836,0.65,186.11,186.07,0.28432314]
[1760787591045,0.65,186.1,186.06,11.41393624]
[1760787591247,0.65,186.09,186.06,0.53746103]
[1760787591451,0.65,186.09,186.07,4.3043787]
[1760787591637,0.65,186.08,186.07,4.3043787]
[1760787592145,0.65,186.08,186.07,9.67870019]
[1760787593533,0.65,186.08,186.07,4.3043787]
[1760787595141,0.65,186.08,186.06,5.37461034]
[1760787595327,0.65,186.07,186.06,10.74922068]
[1760787596956,0.65,186.1,186.06,10.74922068]
[1760787597149,0.65,186.09,186.06,10.74922068]
[1760787597459,0.65,186.08,186.06,5.37461034]
[1760787597859,0.65,186.07,186.04,5.37517242]
[1760787598054,0.65,186.06,186.04,5.37517242]
[1760787598260,0.65,186.05,186.04,16.25164763]
[1760787598775,0.65,186.05,186.04,10.87647521]
[1760787598941,0.65,186.05,186.01,0.28432314]
[1760787598942,0.65,186.05,186.01,5.37605505]
[1760787599141,0.65,186.05,186.02,10.87647521]
[1760787599359,0.28432314,186.14,186.03,5.37547707]
[1760787599547,0.65,186.07,186.03,5.37547707]
[1760787599857,0.65,186.06,186.03,5.37547707]
[1760787600586,2.00659439,186.09,186.03,5.37547707]
[1760787600587,0.65,186.05,186.03,5.37547707]
[1760787601452,0.65,186.04,186.03,5.37547707]
[1760787601650,0.65,186.04,186.02,5.37576444]
[1760787601861,2.00659439,186.07,186.02,5.37576444]
[1760787602068,0.65,186.06,186.02,5.37576444]
[1760787602966,0.65,186.05,186.02,5.37576444]
[1760787603147,2.65659439,186.08,186.03,5.375301]
[1760787603350,0.65,186.1,186.04,1.53184195]
[1760787603548,0.65,186.1,186.04,17.69781258]
[1760787604061,0.65,186.1,186.04,1.53184195]
[1760787604454,0.65,186.1,186.05,16.16597063]
[1760787604657,0.65,186.1,186.07,5.37432149]
[1760787605069,0.65,186.1,186.06,0.53746103]
[1760787605277,2.65659439,186.09,186.04,5.37491873]
[1760787605578,0.72,186.08,186.04,5.37491873]
[1760787605873,2.72659439,186.08,186.01,0.72]
[1760787606171,2.00659439,186.06,186.02,5.37576604]
[1760787606469,0.72,186.05,186.02,5.37576604]
[1760787606856,0.72,186.05,186.01,5.37602969]
[1760787607854,0.72,186.04,186.0,0.5376344]
[1760787608165,0.72,186.03,185.98,0.72]
[1760787608370,0.72,186.03,185.99,5.37650839]
[1760787608572,0.72,186.05,185.99,5.9141717]
[1760787608747,0.72,186.05,186.0,0.72]
[1760787609382,2.00659439,186.07,186.01,1.2576055]
[1760787609682,2.00659439,186.05,185.99,19.53809127]
[1760787609972,0.72,186.04,185.99,5.9141717]
[1760787610154,2.72659439,186.04,185.99,5.9141717]
[1760787610353,2.00659439,186.06,186.0,0.72]
[1760787610550,2.72659439,186.07,186.01,0.5376055]
[1760787611372,0.72,186.07,186.01,1.2576055]
[1760787611671,0.72,186.07,186.02,0.72]
[1760787612064,0.72,186.07,186.03,5.37547707]
[1760787612458,0.72,186.07,186.03,6.09547707]
[1760787612661,2.00659439,186.08,186.03,6.09547707]
[1760787612855,0.72,186.09,186.03,18.81416975]
[1760787613060,2.72659439,186.11,186.04,1.54184195]
[1760787613373,2.00659439,186.1,186.04,1.54184195]
[1760787613755,2.00659439,186.08,186.03,5.37547707]
[1760787614070,0.67,186.08,186.03,0.69]
[1760787614454,0.67,186.08,186.03,1.2275477]
[1760787614651,2.67659439,186.08,186.03,0.69]
[1760787615075,2.00659439,186.09,186.04,0.69]
[1760787615274,0.67,186.09,186.04,0.69]
[1760787615659,0.67,186.09,186.04,1.22751881]
[1760787615972,2.00659439,186.1,186.06,5.37461034]
[1760787616181,2.67659439,186.1,186.06,5.37461034]
[1760787618977,2.00659439,186.11,186.05,5.37489922]
[1760787619187,2.00659439,186.11,186.06,1.22746103]
[1760787619481,0.67,186.12,186.07,0.69]
[1760787619692,2.00659439,186.12,186.07,0.69]
[1760787619877,22.88,186.17,186.07,0.69]
[1760787619878,2.67659439,186.11,186.07,0.69]
[1760787620254,2.00659439,186.12,186.07,0.69]
[1760787620564,2.67659439,186.12,186.07,0.69]
[1760787621273,2.67659439,186.11,186.07,6.0642979]
[1760787622386,2.00659439,186.12,186.08,0.69]
[1760787622881,2.67659439,186.12,186.08,0.69]
[1760787623179,2.00659439,186.12,186.09,6.06366206]
[1760787623360,2.00659439,186.12,186.09,5.37366206]
[1760787623561,0.67,186.13,186.09,5.37366206]
[1760787623761,2.00659439,186.12,186.09,5.37366206]
[1760787624186,2.00659439,186.12,186.08,5.37397581]
[1760787624386,2.67659439,186.12,186.08,6.06397581]
[1760787624883,2.00659439,186.1,186.06,6.06461034]
[1760787625061,2.00659439,186.1,186.07,0.69]
[1760787625261,2.00659439,186.1,186.07,6.06418046]
[1760787625980,2.00659439,186.12,186.08,1.22740326]
[1760787626182,2.00659439,186.12,186.08,0.69]
[1760787626375,2.00659439,186.11,186.08,0.69]
[1760787627386,2.67659439,186.12,186.08,6.06381715]
[1760787628082,2.00659439,186.12,186.08,6.06381715]
[1760787628387,2.00659439,186.12,186.06,0.53746103]
[1760787628388,2.00659439,186.12,186.09,6.06374237]
[1760787628763,2.00659439,186.12,186.09,0.69]
[1760787629181,2.00659439,186.12,186.08,5.37396881]
[1760787629385,3.12471227,186.12,186.08,6.06396881]
[1760787629587,3.79471227,186.13,186.08,6.06396881]
[1760787629887,3.79471227,186.13,186.09,6.06366858]
[1760787630275,3.79471227,186.13,186.09,5.37366858]
[1760787630276,3.12471227,186.13,186.09,5.37366858]
[1760787630600,3.12471227,186.13,186.1,0.69]
[1760787630787,3.12471227,186.13,186.09,5.37366858]
[1760787630993,3.12471227,186.13,186.09,6.06366858]
[1760787632774,3.12471227,186.12,186.09,6.06366858]
[1760787633169,0.67,186.13,186.08,5.37395847]
[1760787633376,3.12471227,186.13,186.09,0.69]
[1760787633686,0.67,186.13,186.09,0.69]
[1760787633876,3.12471227,186.12,186.09,0.69]
[1760787634873,3.79471227,186.12,186.08,5.37395847]
[1760787635075,3.12471227,186.11,186.08,6.06395847]
[1760787635483,3.12471227,186.11,186.08,5.37395847]
[1760787635785,3.12471227,186.11,186.09,0.69]
[1760787636193,3.12471227,186.12,186.09,0.69]
[1760787638079,3.12471227,186.12,186.07,5.37432149]
[1760787638291,3.12471227,186.12,186.06,0.53746103]
[1760787638292,3.79471227,186.11,186.06,5.37454258]
[1760787638595,3.79471227,186.11,186.07,0.69]
[1760787639265,3.79471227,186.11,186.07,6.06425376]
[1760787639769,3.12471227,186.1,186.04,0.53751881]
[1760787639969,3.12471227,186.07,186.02,6.60331523]
[1760787640166,3.79471227,186.07,186.02,6.06573863]
[1760787640378,3.79471227,186.07,186.03,0.69]
[1760787640596,3.12471227,186.06,186.03,0.69]
[1760787641402,3.12471227,186.06,186.03,6.06539702]
[1760787642287,3.12471227,186.06,186.01,0.5376055]
[1760787642288,22.88,186.1,186.01,0.69]
[1760787642595,3.79471227,186.05,186.01,0.69]
[1760787643392,3.79471227,186.05,186.01,6.06592325]
[1760787644584,3.12471227,186.05,186.01,5.37592325]
[1760787644894,3.78471227,186.05,186.01,6.09592325]
[1760787645773,3.12471227,186.04,186.01,6.09592325]
[1760787645980,3.12471227,186.03,186.0,5.37627211]
[1760787646302,3.12471227,186.03,186.0,6.09627211]
[1760787646676,3.12471227,186.03,186.0,0.72]
[1760787646876,3.12471227,186.03,185.99,5.37657958]
[1760787647078,3.78471227,186.03,185.99,6.09657958]
[1760787647705,3.12471227,186.03,185.99,6.09657958]
[1760787648199,3.12471227,186.03,186.0,0.72]
[1760787649800,3.12471227,186.03,186.0,6.09626063]
[1760787650979,3.12471227,186.05,186.01,0.72]
[1760787651184,3.12471227,186.05,186.02,0.72]
[1760787651493,3.12471227,186.05,186.03,0.72]
[1760787651702,3.78471227,186.04,186.0,6.09626063]
[1760787652089,3.12471227,186.03,186.0,6.09626063]
[1760787653801,3.12471227,186.03,186.0,0.72]
[1760787654182,3.78471227,186.03,185.99,5.37657952]
[1760787654379,3.12471227,186.02,185.99,6.09657952]
[1760787654801,3.12471227,186.02,186.0,0.72]
[1760787656498,3.12471227,186.02,185.99,6.09657952]
[1760787657107,3.12471227,186.01,185.98,0.53769222]
[1760787657288,3.12471227,186.01,185.98,0.72]
[1760787657488,3.12471227,186.0,185.97,5.37708362]
[1760787657710,3.12471227,186.0,185.97,6.09708362]
[1760787658207,3.12471227,186.0,185.98,0.72]
[1760787660107,3.12471227,186.01,185.98,0.72]
[1760787660492,3.12471227,186.02,185.98,5.37681498]
[1760787660811,3.12471227,186.02,185.99,0.72]
[1760787661023,3.12471227,186.02,186.0,0.72]
[1760787661604,0.66,186.08,186.01,0.72]
[1760787661798,3.78471227,186.08,186.02,0.5375766]
[1760787662002,3.12471227,186.08,186.03,6.09524393]
[1760787662206,3.78471227,186.08,186.04,0.72]
[1760787663125,3.12471227,186.09,186.04,1.25751881]
[1760787663311,102.3,186.17,186.04,1.25751881]
[1760787663312,3.78471227,186.13,186.06,0.28432314]
[1760787663497,3.78471227,186.13,186.07,1.25743214]
[1760787663697,3.12471227,186.14,186.08,0.72]
[1760787664015,3.12471227,186.14,186.09,0.53737438]
[1760787664230,3.12471227,186.14,186.1,6.09345513]
[1760787664511,3.12471227,186.13,186.1,0.72]
[1760787665009,0.72,186.16,186.11,1.25731664]
[1760787665208,3.12471227,186.15,186.12,0.72]
[1760787665430,3.12471227,186.14,186.11,0.53731664]
[1760787665595,3.12471227,186.14,186.11,1.25731664]
[1760787665994,3.12471227,186.14,186.11,0.72]
[1760787666408,3.12471227,186.14,186.1,0.82166865]
[1760787666607,3.12471227,186.13,186.09,6.09368135]
[1760787666999,3.12471227,186.13,186.1,0.72]
[1760787667822,3.12471227,186.13,186.09,5.37368135]
[1760787667993,3.12471227,186.13,186.09,6.09368135]
[1760787668188,3.12471227,186.12,186.09,6.09368135]
[1760787668395,3.12471227,186.1,186.06,1.25746103]
[1760787668697,3.12471227,186.07,186.05,16.16335766]
[1760787668919,3.12471227,186.07,186.04,0.72]
[1760787669299,3.12471227,186.07,186.03,6.09545248]
[1760787669521,3.12471227,186.07,186.04,0.72]
[1760787670806,3.12471227,186.08,186.04,6.09510848]
[1760787673113,3.12471227,186.08,186.03,5.37547707]
[1760787673302,3.12471227,186.08,186.05,0.67]
[1760787676729,3.12471227,186.08,186.06,0.67]
[1760787677309,3.12471227,186.08,186.04,5.37508869]
[1760787677525,3.12471227,186.08,186.05,0.67]
[1760787679426,3.82471227,186.07,186.03,25.4754347]
[1760787679726,3.82471227,186.07,186.03,26.1454347]
[1760787680629,3.12471227,186.07,186.03,26.1454347]
[1760787681330,3.12471227,186.07,186.03,25.4754347]
[1760787681506,3.12471227,186.07,186.04,0.67]
[1760787684434,3.12471227,186.06,186.04,6.04516119]
[1760787684728,3.12471227,186.07,186.04,6.04516119]
[1760787685431,3.12471227,186.07,186.05,0.67]
[1760787686215,3.12471227,186.08,186.06,0.67]
[1760787686421,3.12471227,186.08,186.07,0.67]
[1760787686620,3.12471227,186.1,186.07,0.67]
[1760787686819,3.12471227,186.1,186.05,0.53748992]
[1760787686820,3.12471227,186.1,186.08,0.67]
[1760787687834,3.12471227,186.1,186.06,5.37461034]
[1760787688225,3.12471227,186.1,186.07,0.67]
[1760787688615,3.12471227,186.11,186.08,0.67]
[1760787688834,3.12471227,186.12,186.08,0.67]
[1760787689224,3.12471227,186.12,186.09,0.67]
[1760787689426,3.12471227,186.11,186.07,1.20743214]
[1760787689623,3.12471227,186.11,186.07,0.53743214]
[1760787689820,3.12471227,186.11,186.08,0.67]
[1760787691539,1.99993224,186.11,186.08,0.67]
[1760787692031,22.88,186.16,186.07,5.91156041]
[1760787692240,1.99993224,186.11,186.07,26.68156041]
[1760787692440,1.99993224,186.11,186.08,0.67]
[1760787692938,1.99993224,186.11,186.07,26.01156041]
[1760787693123,1.99993224,186.11,186.09,0.67]
[1760787693322,1.99993224,186.11,186.07,26.01156041]
[1760787693525,2.69993224,186.11,186.07,26.68156041]
[1760787694426,2.69993224,186.11,186.07,26.01156041]
[1760787694623,1.99993224,186.11,186.08,0.67]
[1760787695139,1.99993224,186.12,186.08,0.67]
[1760787696020,1.99993224,186.12,186.09,5.37374388]
[1760787696339,1.99993224,186.12,186.1,0.67]
[1760787697036,1.99993224,186.13,186.1,0.67]
[1760787697444,1.99993224,186.13,186.11,0.67]
[1760787697622,1.99993224,186.14,186.11,0.67]
[1760787698638,1.99993224,186.13,186.1,6.04342424]
[1760787700243,1.99993224,186.13,186.1,0.67]
[1760787700428,2.69993224,186.13,186.1,0.67]
[1760787700845,1.99993224,186.13,186.1,0.67]
[1760787701256,2.69993224,186.13,186.1,0.67]
[1760787701545,1.99993224,186.13,186.1,0.67]
[1760787702043,2.69993224,186.13,186.09,6.0437242]
[1760787702746,2.69993224,186.13,186.09,5.3737242]
[1760787702950,2.69993224,186.13,186.1,0.67]
[1760787704154,0.7,186.13,186.1,0.67]
[1760787704338,2.69993224,186.13,186.1,0.67]
[1760787705520,2.69993224,186.13,186.09,6.0537242]
[1760787706548,2.69993224,186.13,186.1,0.68]
[1760787708736,1.99993224,186.12,186.1,0.68]
[1760787709852,2.69993224,186.13,186.1,0.68]
[1760787711054,2.69993224,186.13,186.1,6.05342109]
[1760787711242,1.99993224,186.13,186.1,6.05342109]
[1760787711550,1.99993224,186.13,186.11,0.68]
[1760787712650,1.99993224,186.14,186.12,0.68]
[1760787712848,1.99993224,186.14,186.11,0.68]
[1760787713050,1.99993224,186.13,186.1,0.53734551]
[1760787713350,1.99993224,186.13,186.1,1.21734551]
[1760787713955,1.99993224,186.13,186.11,0.68]
[1760787714644,7.99972896,186.21,186.1,0.53734551]
[1760787714846,7.99972896,186.21,186.12,0.68]
[1760787714847,1.99993224,186.15,186.12,0.68]
[1760787715045,1.99993224,186.16,186.12,0.68]
[1760787715252,1.99993224,186.17,186.13,0.5372589]
[1760787715556,1.99993224,186.17,186.14,0.68]
[1760787715736,1.99993224,186.17,186.15,0.68]
[1760787716355,1.99993224,186.17,186.14,5.37230041]
[1760787716655,1.99993224,186.17,186.14,6.05230041]
[1760787719344,1.99993224,186.17,186.14,5.37230041]
[1760787719657,24.87993224,186.18,186.15,0.68]
[1760787719971,24.87993224,186.18,186.16,0.68]
[1760787720152,1.99993224,186.18,186.16,0.68]
[1760787720472,1.99993224,186.19,186.16,0.68]
[1760787721469,0.66,186.2,186.16,6.05171464]
[1760787721769,1.99993224,186.19,186.16,0.68]
[1760787723039,1.99993224,186.17,186.14,0.53723004]
[1760787723245,1.99993224,186.16,186.14,0.68]
[1760787723458,1.99993224,186.16,186.14,6.0522469]
[1760787723654,1.99993224,186.17,186.15,0.68]
[1760787724447,1.99993224,186.18,186.15,0.68]
[1760787726064,1.99993224,186.18,186.16,0.65]
[1760787726239,0.66,186.21,186.16,0.53717232]
[1760787726240,1.99993224,186.19,186.16,0.53717232]
[1760787726446,1.99993224,186.19,186.16,1.18717232]
[1760787727250,1.99993224,186.19,186.17,0.65]
[1760787727453,1.99993224,186.2,186.18,0.53711462]
[1760787727764,1.99993224,186.23,186.19,0.65]
[1760787728058,1.99993224,186.24,186.2,0.53705692]
[1760787728265,1.99993224,186.25,186.21,0.65]
[1760787728465,1.99993224,186.25,186.22,0.53699924]
[1760787728963,0.1,186.26,186.23,2.1537219]
[1760787729172,1.99993224,186.24,186.23,2.1537219]
[1760787729662,1.99993224,186.24,186.23,2.8037219]
[1760787729867,1.99993224,186.25,186.23,2.8037219]
[1760787730065,2.09993224,186.26,186.23,2.8037219]
[1760787730465,2.09993224,186.26,186.23,2.1537219]
[1760787730764,0.1,186.26,186.24,1.18694158]
[1760787730958,0.1,186.26,186.25,0.65]
[1760787731262,0.1,186.26,186.24,0.53694158]
[1760787731475,1.99993224,186.25,186.23,2.1537219]
[1760787731774,1.99993224,186.24,186.23,2.1537219]
[1760787731977,1.99993224,186.25,186.23,2.8037219]
[1760787732174,0.1,186.26,186.24,0.65]
[1760787733580,2.09993224,186.26,186.23,2.69069231]
[1760787733764,1.99993224,186.25,186.23,2.1537219]
[1760787733951,1.99993224,186.25,186.23,0.67]
[1760787734572,2.09993224,186.26,186.23,0.67]
[1760787734775,2.09993224,186.26,186.24,0.67]
[1760787734975,0.1,186.26,186.24,0.67]
[1760787735353,0.1,186.26,186.25,2.15348999]
[1760787735778,2.09993224,186.26,186.25,2.15348999]
[1760787736163,2.81993224,186.26,186.25,2.15348999]
[1760787736552,2.81993224,186.26,186.21,1.20702808]
[1760787736755,1.99993224,186.24,186.22,5.37052091]
[1760787736959,1.99993224,186.23,186.22,5.37052091]
[1760787737166,1.99993224,186.23,186.22,6.04052091]
[1760787737371,1.99993224,186.24,186.22,6.04052091]
[1760787738581,1.99993224,186.24,186.22,5.37052091]
[1760787739285,1.99993224,186.24,186.22,6.04052091]
[1760787739485,1.99993224,186.24,186.22,5.37052091]
[1760787739863,1.99993224,186.24,186.22,6.04052091]
[1760787740071,1.99993224,186.24,186.22,5.37052091]
[1760787741787,2.71993224,186.23,186.22,5.37052091]
[1760787743375,2.71993224,186.23,186.19,0.67]
[1760787743572,1.99993224,186.22,186.2,5.37141738]
[1760787745487,1.99993224,186.22,186.2,6.04141738]
[1760787746183,1.99993224,186.22,186.2,0.67]
[1760787746389,1.99993224,186.22,186.2,16.82465388]
[1760787748297,2.71993224,186.21,186.16,20.1]
[1760787748595,1.99993224,186.19,186.18,16.15639389]
[1760787749695,1.99993224,186.2,186.18,16.15639389]
[1760787751167,1.99993224,186.2,186.18,16.82639389]
[1760787751583,1.99993224,186.21,186.18,16.82639389]
[1760787751784,1.99993224,186.22,186.19,0.67]
[1760787751987,1.99993224,186.22,186.19,16.82639389]
[1760787752493,1.99993224,186.23,186.2,0.67]
[1760787752993,1.99993224,186.23,186.21,0.67]
[1760787753473,3.12075685,186.23,186.2,16.15552384]
[1760787753678,3.12075685,186.23,186.21,0.67]
[1760787753993,3.22075685,186.26,186.22,0.67]
[1760787754175,3.22075685,186.26,186.23,0.67]
[1760787754786,3.22075685,186.26,186.24,0.67]
[1760787755897,3.22075685,186.26,186.22,0.67]
[1760787756096,3.12075685,186.25,186.23,0.67]
[1760787756892,3.12075685,186.24,186.22,3.12075685]
[1760787758001,3.12075685,186.23,186.22,3.12075685]
[1760787758207,0.72,186.25,186.22,3.12075685]
[1760787758397,3.12075685,186.24,186.22,3.12075685]
[1760787759006,3.12075685,186.23,186.19,20.1]
[1760787759182,3.12075685,186.22,186.21,3.12075685]
[1760787760005,3.12075685,186.23,186.21,3.12075685]
[1760787760192,3.12075685,186.23,186.21,3.79075685]
[1760787760799,3.12075685,186.23,186.21,3.12075685]
[1760787761006,3.84075685,186.22,186.18,20.1]
[1760787761207,3.12075685,186.2,186.18,20.1]
[1760787761383,3.12075685,186.2,186.19,3.12075685]
[1760787762302,3.12075685,186.21,186.19,3.79075685]
[1760787762606,3.12075685,186.22,186.19,3.79075685]
[1760787763412,3.12075685,186.22,186.2,0.69]
[1760787763706,3.79075685,186.21,186.18,20.1]
[1760787763893,3.12075685,186.21,186.18,20.1]
[1760787764101,3.12075685,186.21,186.18,23.91075685]
[1760787764300,3.12075685,186.2,186.18,23.91075685]
[1760787764502,3.12075685,186.19,186.16,0.69]
[1760787764708,3.12075685,186.19,186.17,0.69]
[1760787764907,3.79075685,186.18,186.16,16.15813427]
[1760787765209,3.12075685,186.17,186.14,0.69]
[1760787765397,3.12075685,186.17,186.15,16.84813427]
[1760787766497,3.12075685,186.16,186.15,16.84813427]
[1760787767799,3.12075685,186.16,186.15,16.15813427]
[1760787768016,3.79075685,186.16,186.12,0.69]
[1760787768188,3.12075685,186.13,186.12,0.69]
[1760787769298,3.12075685,186.14,186.12,0.69]
[1760787769497,3.12075685,186.15,186.13,0.69]
[1760787770113,3.12075685,186.14,186.13,0.69]
[1760787771794,3.12075685,186.14,186.11,16.85248686]
[1760787772609,3.12075685,186.14,186.12,0.69]
[1760787773312,3.12075685,186.13,186.11,16.16248686]
[1760787773517,3.12075685,186.13,186.11,16.85248686]
[1760787773816,3.12075685,186.14,186.12,0.69]
[1760787774110,3.12075685,186.14,186.11,16.16248686]
[1760787774510,3.12075685,186.14,186.12,0.69]
[1760787774704,3.12075685,186.14,186.11,16.16248686]
[1760787774896,3.12075685,186.14,186.11,16.85248686]
[1760787775298,3.12075685,186.14,186.12,0.69]
[1760787775732,3.12075685,186.13,186.11,16.16248686]
[1760787775918,3.12075685,186.14,186.11,16.16248686]
[1760787776122,3.12075685,186.14,186.11,16.85248686]
[1760787776421,3.12075685,186.14,186.12,0.69]
[1760787777418,3.12075685,186.14,186.13,0.69]
[1760787777610,3.12075685,186.15,186.13,0.69]
[1760787778116,3.12075685,186.15,186.12,16.16161616]
[1760787778300,3.12075685,186.15,186.12,16.85161616]
[1760787778721,3.12075685,186.15,186.12,0.69]
[1760787778921,3.12075685,186.14,186.12,0.69]
[1760787780923,26.00075685,186.15,186.12,0.69]
[1760787781303,26.00075685,186.15,186.12,16.85161616]
[1760787781531,3.12075685,186.14,186.12,16.85161616]
[1760787782024,3.12075685,186.14,186.12,0.69]
[1760787782221,3.12075685,186.14,186.12,16.85161616]
[1760787782430,3.12075685,186.14,186.12,16.16161616]
[1760787782603,3.12075685,186.18,186.13,1.2272589]
[1760787782803,3.12075685,186.18,186.14,0.69]
[1760787783322,3.12075685,186.18,186.15,3.12075685]
[1760787783522,3.12075685,186.19,186.16,0.69]
[1760787783824,3.12075685,186.2,186.16,0.69]
[1760787784008,3.12075685,186.2,186.17,0.69]
[1760787784216,3.12075685,186.2,186.17,3.81075685]
[1760787784625,3.12075685,186.2,186.17,0.69]
[1760787785008,3.12075685,186.2,186.18,5.90903263]
[1760787785207,3.12075685,186.19,186.18,5.90903263]
[1760787785429,3.12075685,186.19,186.17,0.69]
[1760787786210,3.12075685,186.19,186.17,6.59903263]
[1760787786612,3.12075685,186.19,186.17,0.69]
[1760787786920,3.12075685,186.19,186.18,6.59903263]
[1760787787230,3.12075685,186.19,186.17,0.69]
[1760787787425,3.12075685,186.2,186.17,0.69]
[1760787788215,3.12075685,186.22,186.18,6.59903263]
[1760787788414,3.12075685,186.24,186.19,0.66]
[1760787788620,3.12075685,186.24,186.2,0.53705692]
[1760787788929,3.12075685,186.24,186.21,0.66]
[1760787789114,3.12075685,186.24,186.22,0.66]
[1760787789726,3.12075685,186.24,186.22,7.25903263]
[1760787790035,3.12075685,186.23,186.22,7.25903263]
[1760787790238,3.12075685,186.23,186.22,0.66]
[1760787790530,3.12075685,186.23,186.21,16.15378402]
[1760787790916,3.12075685,186.23,186.21,16.81378402]
[1760787796233,3.12075685,186.24,186.21,16.81378402]
[1760787796415,0.1,186.26,186.21,21.5238711]
[1760787796617,0.1,186.26,186.22,1.19699924]
[1760787796823,3.22075685,186.26,186.23,0.66]
[1760787797042,3.22075685,186.26,186.24,0.66]
[1760787797545,0.1,186.26,186.23,16.15204457]
[1760787797717,0.1,186.26,186.25,0.66]
[1760787802442,0.1,186.26,186.24,16.15204457]
[1760787802641,0.1,186.26,186.24,0.66]
[1760787802840,0.1,186.26,186.25,0.66]
[1760787804324,3.90075685,186.26,186.22,0.66]
[1760787804523,3.90075685,186.26,186.21,5.90726066]
[1760787804524,3.22075685,186.26,186.23,16.81204457]
[1760787804952,3.12075685,186.25,186.24,0.66]
[1760787805451,3.22075685,186.26,186.24,0.66]
[1760787805657,3.22075685,186.26,186.24,3.78075685]
[1760787810132,0.1,186.26,186.25,0.66]
[1760787814244,3.22075685,186.26,186.25,0.66]
[1760787815351,2.09654045,186.26,186.25,0.66]
[1760787817155,0.1,186.26,186.25,0.66]
[1760787819352,0.1,186.26,186.24,5.36990641]
[1760787819559,0.1,186.26,186.25,0.66]
[1760787819739,0.1,186.26,186.23,16.81204457]
[1760787820150,0.1,186.26,186.23,0.66]
[1760787820460,0.1,186.26,186.24,2.15360594]
[1760787820765,0.1,186.26,186.24,2.81360594]
[1760787821860,0.1,186.26,186.25,0.66]
[1760787823259,2.09654045,186.26,186.25,0.66]
[1760787823648,2.09654045,186.26,186.24,2.15360594]
[1760787824460,2.09654045,186.26,186.24,2.87360594]
[1760787824630,0.1,186.26,186.25,0.72]
[1760787828562,0.1,186.26,186.25,2.15360594]
[1760787829452,0.1,186.26,186.25,2.87360594]
[1760787832757,2.09654045,186.26,186.25,2.87360594]
[1760787834171,0.1,186.26,186.25,2.87360594]
[1760787835973,0.1,186.26,186.25,2.15360594]